[Event "GrandPrix_29.05"]
[Site "Chess.com"]
[Date "2020.05.29"]
[Round "4"]
[White "Shahinyan_ChessMood"]
[Black "MasterSonnevanck2"]
[Result "1-0"]
[WhiteElo "2271"]
[BlackElo "2036"]
[TimeControl "600+2"]
[EndTime "10:58:24 PDT"]
[Termination "Shahinyan_ChessMood won by resignation"]

1. e4 {[%clk 0:10:01.9]} 1... e5 {[%clk 0:09:59.3]} 2. Nf3 {[%clk 0:10:01.8]}
2... Nc6 {[%clk 0:10:00.1]} 3. Be2 {[%clk 0:09:59]} 3... Nf6 {[%clk 0:09:56.6]}
4. d3 {[%clk 0:09:58.5]} 4... d5 {[%clk 0:09:55.8]} 5. Nbd2 {[%clk 0:09:58.9]}
5... Be7 {[%clk 0:09:51.7]} 6. O-O {[%clk 0:09:55.9]} 6... O-O {[%clk
0:09:52.2]} 7. c3 {[%clk 0:09:54]} 7... a5 {[%clk 0:09:52.4]} 8. Re1 {[%clk
0:09:50.2]} 8... b6 {[%clk 0:09:49]} 9. Qc2 {[%clk 0:09:44.9]} 9... Ba6 {[%clk
0:09:37.9]} 10. b3 {[%clk 0:09:39.7]} 10... Bc5 {[%clk 0:09:12.1]} 11. h3 {[%clk
0:09:20.1]} 11... d4 {[%clk 0:09:05.1]} 12. a3 {[%clk 0:08:37.8]} 12... dxc3
{[%clk 0:09:00.5]} 13. Qxc3 {[%clk 0:08:39.7]} 13... Nd4 {[%clk 0:08:44]} 14.
Bf1 {[%clk 0:08:39.9]} 14... Qe7 {[%clk 0:07:57.1]} 15. Bb2 {[%clk 0:08:28.1]}
15... Nh5 {[%clk 0:07:32.1]} 16. Nxd4 {[%clk 0:07:16]} 16... Bxd4 {[%clk
0:07:30.8]} 17. Qc2 {[%clk 0:07:17]} 17... Bxb2 {[%clk 0:06:49.7]} 18. Qxb2
{[%clk 0:07:18.9]} 18... Rad8 {[%clk 0:06:42.9]} 19. Re3 {[%clk 0:07:00.4]}
19... Nf4 {[%clk 0:06:37.7]} 20. Qc3 {[%clk 0:06:41.9]} 20... f6 {[%clk
0:05:58.1]} 21. b4 {[%clk 0:06:25.2]} 21... axb4 {[%clk 0:05:57.1]} 22. axb4
{[%clk 0:06:15.7]} 22... Bb5 {[%clk 0:05:56.6]} 23. g3 {[%clk 0:05:29.3]} 23...
Ne6 {[%clk 0:05:55.7]} 24. h4 {[%clk 0:05:29.4]} 24... Nd4 {[%clk 0:05:42.8]}
25. Bh3 {[%clk 0:05:15.5]} 25... Ra8 {[%clk 0:04:55]} 26. Rc1 {[%clk 0:04:37.5]}
26... Ra7 {[%clk 0:04:52.4]} 27. Nf3 {[%clk 0:04:28.2]} 27... Nxf3+ {[%clk
0:04:13.8]} 28. Rxf3 {[%clk 0:04:30.1]} 28... Bd7 {[%clk 0:04:01.1]} 29. Qc4+
{[%clk 0:03:50.1]} 29... Kh8 {[%clk 0:03:57.7]} 30. Bxd7 {[%clk 0:03:48.8]}
30... Qxd7 {[%clk 0:03:57.3]} 31. Qc6 {[%clk 0:03:50.7]} 31... Rd8 {[%clk
0:03:16]} 32. h5 {[%clk 0:03:11.9]} 32... h6 {[%clk 0:02:48.9]} 33. Rxf6 {[%clk
0:02:47.3]} 33... gxf6 {[%clk 0:02:35.9]} 34. Qxf6+ {[%clk 0:02:49.2]} 34... Kg8
{[%clk 0:02:25.2]} 35. Rc6 {[%clk 0:02:49.6]} 35... Rf8 {[%clk 0:02:10]} 36.
Qxh6 {[%clk 0:02:46.4]} 36... Rf7 {[%clk 0:01:37.2]} 37. Re6 {[%clk 0:02:29.9]}
37... Ra1+ {[%clk 0:01:10.9]} 38. Kg2 {[%clk 0:02:29]} 38... Ra2 {[%clk
0:01:11]} 39. Qg5+ {[%clk 0:01:57.4]} 39... Rg7 {[%clk 0:00:55.6]} 40. Qxe5
{[%clk 0:01:51.8]} 40... Qf7 {[%clk 0:00:45.8]} 41. Rf6 {[%clk 0:01:47.7]} 41...
Qd7 {[%clk 0:00:41.6]} 42. h6 {[%clk 0:01:36.9]} 42... Re7 {[%clk 0:00:35.6]}
43. Qg5+ {[%clk 0:01:33.1]} 43... Kh7 {[%clk 0:00:36.2]} 44. Qg6+ {[%clk
0:01:32.8]} 1-0

[Event "GrandPrix_29.05"]
[Site "Chess.com"]
[Date "2020.05.29"]
[Round "4"]
[White "KJakubowski"]
[Black "Kobalia"]
[Result "1-0"]
[WhiteElo "2570"]
[BlackElo "2219"]
[TimeControl "600+2"]
[EndTime "10:58:27 PDT"]
[Termination "KJakubowski won by resignation"]

1. d4 {[%clk 0:10:00.2]} 1... d5 {[%clk 0:09:58.5]} 2. c4 {[%clk 0:09:55.4]}
2... c6 {[%clk 0:09:59.3]} 3. cxd5 {[%clk 0:09:55.2]} 3... cxd5 {[%clk
0:09:59.5]} 4. Nc3 {[%clk 0:09:56.6]} 4... e6 {[%clk 0:10:00.1]} 5. Nf3 {[%clk
0:09:45.1]} 5... Nc6 {[%clk 0:09:59]} 6. Bf4 {[%clk 0:08:48.6]} 6... Bd6 {[%clk
0:09:57.8]} 7. Bg3 {[%clk 0:08:42.3]} 7... Nge7 {[%clk 0:09:56.8]} 8. e3 {[%clk
0:08:38.7]} 8... Nf5 {[%clk 0:09:54.6]} 9. Bd3 {[%clk 0:08:36.5]} 9... Nxg3
{[%clk 0:09:53.3]} 10. hxg3 {[%clk 0:08:37.3]} 10... Bd7 {[%clk 0:09:42.1]} 11.
a3 {[%clk 0:07:54.4]} 11... Qe7 {[%clk 0:09:27.9]} 12. e4 {[%clk 0:06:20.4]}
12... dxe4 {[%clk 0:09:26.4]} 13. Nxe4 {[%clk 0:06:20.8]} 13... Rd8 {[%clk
0:09:01.2]} 14. Qd2 {[%clk 0:05:37]} 14... Bc7 {[%clk 0:08:01.6]} 15. Kf1 {[%clk
0:04:55.5]} 15... Bc8 {[%clk 0:07:55.3]} 16. Qc3 {[%clk 0:04:37.6]} 16... f5
{[%clk 0:07:06.5]} 17. Nc5 {[%clk 0:04:31.1]} 17... O-O {[%clk 0:07:04.3]} 18.
Re1 {[%clk 0:04:21.3]} 18... Kh8 {[%clk 0:06:48.7]} 19. Nxe6 {[%clk 0:03:18.2]}
19... Bxe6 {[%clk 0:06:29.9]} 20. Rxe6 {[%clk 0:03:17.4]} 20... Qxe6 {[%clk
0:06:05.8]} 21. Rxh7+ {[%clk 0:03:16.9]} 21... Kg8 {[%clk 0:06:06.3]} 22. Ng5
{[%clk 0:02:39.7]} 22... Qd5 {[%clk 0:03:03.1]} 23. Bc4 {[%clk 0:02:31.7]} 23...
f4 {[%clk 0:03:04.2]} 24. Bxd5+ {[%clk 0:01:54.7]} 24... Rxd5 {[%clk 0:03:03.9]}
25. Qc4 {[%clk 0:01:45.3]} 25... Rf5 {[%clk 0:03:04.3]} 26. g4 {[%clk 0:01:04]}
26... Rxg5 {[%clk 0:02:47]} 27. Rh5 {[%clk 0:01:04.5]} 27... Kf8 {[%clk
0:02:37.3]} 28. Rxg5 {[%clk 0:00:59.8]} 28... Rxg5 {[%clk 0:02:36.6]} 29. d5
{[%clk 0:01:00.7]} 29... Rg6 {[%clk 0:02:05.5]} 30. dxc6 {[%clk 0:00:57.8]}
30... Rxc6 {[%clk 0:02:00.2]} 31. Qb4+ {[%clk 0:00:56.8]} 31... Kg8 {[%clk
0:01:51.9]} 32. Qxb7 {[%clk 0:00:56.9]} 32... Rc1+ {[%clk 0:01:52.9]} 33. Ke2
{[%clk 0:00:57.3]} 33... Bb6 {[%clk 0:01:54.2]} 34. Qd5+ {[%clk 0:00:54.3]}
34... Kh8 {[%clk 0:01:51.3]} 35. Qa8+ {[%clk 0:00:48.9]} 35... Kh7 {[%clk
0:01:51.2]} 36. Qe4+ {[%clk 0:00:49.2]} 36... Kh8 {[%clk 0:01:51.2]} 37. g5
{[%clk 0:00:32.4]} 37... Rc8 {[%clk 0:01:32]} 38. g6 {[%clk 0:00:30.9]} 1-0

[Event "GrandPrix_29.05"]
[Site "Chess.com"]
[Date "2020.05.29"]
[Round "4"]
[White "Murad_Ibrahimli"]
[Black "Shota_Azaladze"]
[Result "1-0"]
[WhiteElo "2613"]
[BlackElo "2302"]
[TimeControl "600+2"]
[EndTime "10:58:29 PDT"]
[Termination "Murad_Ibrahimli won by resignation"]

1. d4 {[%clk 0:10:01.9]} 1... Nf6 {[%clk 0:09:57.7]} 2. c4 {[%clk 0:10:01.9]}
2... g6 {[%clk 0:09:57]} 3. Nc3 {[%clk 0:10:00.9]} 3... c5 {[%clk 0:09:57.6]} 4.
d5 {[%clk 0:09:59]} 4... Bg7 {[%clk 0:09:58.4]} 5. e4 {[%clk 0:09:57.1]} 5...
O-O {[%clk 0:09:59.8]} 6. Nf3 {[%clk 0:09:54.6]} 6... e6 {[%clk 0:10:00.5]} 7.
Be2 {[%clk 0:09:43.8]} 7... d6 {[%clk 0:09:55.7]} 8. O-O {[%clk 0:09:42.1]} 8...
e5 {[%clk 0:09:56.4]} 9. Bg5 {[%clk 0:09:38.6]} 9... h6 {[%clk 0:09:52.5]} 10.
Bh4 {[%clk 0:09:38.2]} 10... Qd7 {[%clk 0:08:28.3]} 11. Nd2 {[%clk 0:09:26.2]}
11... Nh7 {[%clk 0:08:25.1]} 12. Qa4 {[%clk 0:08:15.7]} 12... Ng5 {[%clk
0:07:09.4]} 13. Qxd7 {[%clk 0:08:10.4]} 13... Bxd7 {[%clk 0:07:11.3]} 14. Nb5
{[%clk 0:07:43.3]} 14... Bxb5 {[%clk 0:06:57.7]} 15. cxb5 {[%clk 0:07:42.1]}
15... Bf6 {[%clk 0:05:45.3]} 16. Bg3 {[%clk 0:07:39.6]} 16... Be7 {[%clk
0:05:26.3]} 17. a4 {[%clk 0:07:20.8]} 17... Nd7 {[%clk 0:05:18]} 18. a5 {[%clk
0:06:46.1]} 18... h5 {[%clk 0:04:28.7]} 19. h4 {[%clk 0:04:37.1]} 19... Nh7
{[%clk 0:04:24.5]} 20. Nc4 {[%clk 0:04:36.1]} 20... Nhf6 {[%clk 0:04:14.7]} 21.
Bd3 {[%clk 0:04:29.8]} 21... Rad8 {[%clk 0:03:31.3]} 22. b6 {[%clk 0:03:32.2]}
22... a6 {[%clk 0:03:27.4]} 23. f3 {[%clk 0:03:24.7]} 23... Kg7 {[%clk
0:03:24.6]} 24. Kf2 {[%clk 0:03:15.9]} 24... Nh7 {[%clk 0:03:19.2]} 25. Ne3
{[%clk 0:03:06.1]} 25... Rfe8 {[%clk 0:02:30.2]} 26. Ke2 {[%clk 0:03:04]} 26...
Kg8 {[%clk 0:02:30.3]} 27. Be1 {[%clk 0:02:29.4]} 27... Bf8 {[%clk 0:02:30]} 28.
g4 {[%clk 0:02:26.8]} 28... Bh6 {[%clk 0:02:14.9]} 29. Nc4 {[%clk 0:02:22.6]}
29... Nb8 {[%clk 0:01:51.4]} 30. b4 {[%clk 0:02:05.8]} 30... hxg4 {[%clk
0:01:35.7]} 31. fxg4 {[%clk 0:02:04.6]} 31... Bf4 {[%clk 0:01:36.5]} 32. bxc5
{[%clk 0:02:03.1]} 32... dxc5 {[%clk 0:01:38.4]} 33. Bf2 {[%clk 0:02:02.2]}
33... Nf6 {[%clk 0:01:29.2]} 34. Rg1 {[%clk 0:02:00.5]} 34... Nxd5 {[%clk
0:01:11.7]} 35. exd5 {[%clk 0:01:59.2]} 35... e4 {[%clk 0:01:11.8]} 36. Bc2
{[%clk 0:01:59.8]} 36... Rxd5 {[%clk 0:01:11.7]} 37. Rad1 {[%clk 0:01:58.7]}
37... Rxd1 {[%clk 0:01:06.5]} 38. Rxd1 {[%clk 0:01:58.2]} 38... e3 {[%clk
0:01:07.4]} 39. Be1 {[%clk 0:01:46.9]} 39... Nc6 {[%clk 0:01:07.7]} 40. Bc3
{[%clk 0:01:47.9]} 40... Bg3 {[%clk 0:00:55.3]} 41. Rd7 {[%clk 0:01:46]} 41...
Bxh4 {[%clk 0:00:44]} 42. Rxb7 {[%clk 0:01:45.3]} 42... Rd8 {[%clk 0:00:44.6]}
43. Rc7 {[%clk 0:01:39.8]} 43... Nd4+ {[%clk 0:00:36.3]} 44. Bxd4 {[%clk
0:01:38.7]} 44... Rxd4 {[%clk 0:00:38.2]} 45. b7 {[%clk 0:01:36.2]} 45... Bg3
{[%clk 0:00:39.3]} 46. b8=Q+ {[%clk 0:01:34.9]} 1-0

[Event "GrandPrix_29.05"]
[Site "Chess.com"]
[Date "2020.05.29"]
[Round "4"]
[White "Kezin_Roman"]
[Black "Arm-Akiba"]
[Result "0-1"]
[WhiteElo "2590"]
[BlackElo "2920"]
[TimeControl "600+2"]
[EndTime "10:58:30 PDT"]
[Termination "Arm-Akiba won by resignation"]

1. d4 {[%clk 0:10:01.9]} 1... Nf6 {[%clk 0:09:59.8]} 2. c4 {[%clk 0:09:59.8]}
2... e6 {[%clk 0:10:00.9]} 3. g3 {[%clk 0:10:00.1]} 3... d5 {[%clk 0:10:00.9]}
4. Bg2 {[%clk 0:10:00.5]} 4... Bb4+ {[%clk 0:10:01.9]} 5. Bd2 {[%clk 0:09:59.9]}
5... Be7 {[%clk 0:10:03.1]} 6. Nf3 {[%clk 0:10:00.7]} 6... O-O {[%clk
0:10:03.8]} 7. O-O {[%clk 0:10:01.9]} 7... Nbd7 {[%clk 0:10:05]} 8. Qc2 {[%clk
0:10:02.3]} 8... c6 {[%clk 0:10:06.3]} 9. Rd1 {[%clk 0:10:02.5]} 9... b6 {[%clk
0:10:03.6]} 10. Bf4 {[%clk 0:10:01.8]} 10... Ba6 {[%clk 0:10:03.6]} 11. Ne5
{[%clk 0:10:01.4]} 11... Rc8 {[%clk 0:09:56.8]} 12. Nc3 {[%clk 0:10:00.2]} 12...
Bxc4 {[%clk 0:09:42]} 13. Nxc4 {[%clk 0:09:58.1]} 13... dxc4 {[%clk 0:09:43.2]}
14. e4 {[%clk 0:09:59.1]} 14... b5 {[%clk 0:09:39.9]} 15. a4 {[%clk 0:09:57.8]}
15... a6 {[%clk 0:09:28.7]} 16. axb5 {[%clk 0:09:57.5]} 16... axb5 {[%clk
0:09:26.2]} 17. d5 {[%clk 0:09:57.7]} 17... cxd5 {[%clk 0:08:21.1]} 18. exd5
{[%clk 0:09:56.4]} 18... e5 {[%clk 0:08:22.6]} 19. Bg5 {[%clk 0:09:52.3]} 19...
Qb6 {[%clk 0:08:08.9]} 20. Bh3 {[%clk 0:07:17.7]} 20... Bc5 {[%clk 0:07:16.7]}
21. d6 {[%clk 0:03:59.4]} 21... Bd4 {[%clk 0:07:04.9]} 22. Bxf6 {[%clk
0:03:04.4]} 22... Nxf6 {[%clk 0:07:06.8]} 23. Bxc8 {[%clk 0:03:05.9]} 23... Rxc8
{[%clk 0:07:07.3]} 24. Ne4 {[%clk 0:03:07]} 24... Rd8 {[%clk 0:06:14.1]} 25.
Nxf6+ {[%clk 0:01:38.5]} 25... gxf6 {[%clk 0:06:16]} 26. d7 {[%clk 0:01:39.5]}
26... Rxd7 {[%clk 0:05:24.7]} 27. Ra8+ {[%clk 0:01:37.7]} 27... Kg7 {[%clk
0:05:25.3]} 28. Qf5 {[%clk 0:00:11.3]} 28... Qe6 {[%clk 0:05:25.9]} 29. Qxe6
{[%clk 0:00:10.8]} 29... fxe6 {[%clk 0:05:27.8]} 30. Kg2 {[%clk 0:00:11.9]}
30... Rb7 {[%clk 0:05:17.2]} 31. Rd2 {[%clk 0:00:04.4]} 31... b4 {[%clk
0:05:13.1]} 32. Rc8 {[%clk 0:00:04.5]} 32... c3 {[%clk 0:05:13.5]} 33. bxc3
{[%clk 0:00:06.4]} 33... bxc3 {[%clk 0:05:14.3]} 34. Rc2 {[%clk 0:00:07.5]}
34... Rb3 {[%clk 0:04:59.7]} 35. Kf3 {[%clk 0:00:06.5]} 35... f5 {[%clk
0:04:53.5]} 36. Ke2 {[%clk 0:00:07.4]} 36... e4 {[%clk 0:04:52.4]} 37. Rc7+
{[%clk 0:00:07.9]} 37... Kg6 {[%clk 0:04:47.1]} 38. Rc6 {[%clk 0:00:09.1]} 38...
Kf6 {[%clk 0:04:44.9]} 39. f4 {[%clk 0:00:03.5]} 39... Ke7 {[%clk 0:03:52]} 40.
Rc4 {[%clk 0:00:02.5]} 40... e5 {[%clk 0:03:51.7]} 41. fxe5 {[%clk 0:00:03.2]}
41... Bxe5 {[%clk 0:03:53]} 42. Ke3 {[%clk 0:00:05.1]} 42... Rb2 {[%clk
0:03:00.7]} 43. Rxb2 {[%clk 0:00:05.8]} 43... cxb2 {[%clk 0:03:02.6]} 44. Rb4
{[%clk 0:00:07.7]} 44... h5 {[%clk 0:03:03.8]} 45. Rb5 {[%clk 0:00:07.3]} 45...
Kd6 {[%clk 0:02:59]} 46. Ke2 {[%clk 0:00:07.3]} 46... h4 {[%clk 0:02:48.9]} 47.
gxh4 {[%clk 0:00:06.9]} 47... f4 {[%clk 0:02:47.2]} 48. h5 {[%clk 0:00:08.2]}
48... Bd4 {[%clk 0:02:47]} 49. h6 {[%clk 0:00:08.8]} 49... f3+ {[%clk
0:02:48.1]} 50. Ke1 {[%clk 0:00:09.6]} 50... e3 {[%clk 0:02:47.1]} 51. h7 {[%clk
0:00:03.3]} 51... Bc3+ {[%clk 0:02:44.6]} 52. Kd1 {[%clk 0:00:04.7]} 52... e2+
{[%clk 0:02:41.8]} 53. Kc2 {[%clk 0:00:06.2]} 0-1

[Event "GrandPrix_29.05"]
[Site "Chess.com"]
[Date "2020.05.29"]
[Round "4"]
[White "haddinibilbaoo"]
[Black "Gareth-Bale11"]
[Result "0-1"]
[WhiteElo "2135"]
[BlackElo "2351"]
[TimeControl "600+2"]
[EndTime "10:58:33 PDT"]
[Termination "Gareth-Bale11 won on time"]

1. d4 {[%clk 0:10:01.1]} 1... Nf6 {[%clk 0:09:58.8]} 2. Nf3 {[%clk 0:10:00]}
2... d5 {[%clk 0:09:53.2]} 3. Bf4 {[%clk 0:09:59.1]} 3... c5 {[%clk 0:09:51.1]}
4. e3 {[%clk 0:09:59.9]} 4... Nc6 {[%clk 0:09:50.3]} 5. Nbd2 {[%clk 0:10:00.3]}
5... Bg4 {[%clk 0:09:40.7]} 6. h3 {[%clk 0:09:52.3]} 6... Bh5 {[%clk 0:09:38.3]}
7. g4 {[%clk 0:09:05.7]} 7... Bg6 {[%clk 0:09:35.4]} 8. dxc5 {[%clk 0:08:53.9]}
8... Qa5 {[%clk 0:09:06.1]} 9. c3 {[%clk 0:07:21.7]} 9... Qxc5 {[%clk
0:09:01.5]} 10. Nb3 {[%clk 0:07:06.5]} 10... Qb6 {[%clk 0:08:59.2]} 11. g5
{[%clk 0:06:59.4]} 11... Nh5 {[%clk 0:08:40.5]} 12. Qxd5 {[%clk 0:06:49.3]}
12... Nxf4 {[%clk 0:08:40.3]} 13. exf4 {[%clk 0:06:50.6]} 13... e6 {[%clk
0:08:27.1]} 14. Qb5 {[%clk 0:06:41.3]} 14... Qc7 {[%clk 0:07:56.1]} 15. Bg2
{[%clk 0:04:44.4]} 15... a6 {[%clk 0:07:11.7]} 16. Qc4 {[%clk 0:04:32.5]} 16...
Bd6 {[%clk 0:06:55.7]} 17. Nfd4 {[%clk 0:03:16.3]} 17... Nxd4 {[%clk 0:06:42.7]}
18. Qxd4 {[%clk 0:03:13.8]} 18... O-O {[%clk 0:06:13.5]} 19. O-O {[%clk
0:03:01.5]} 19... Bxf4 {[%clk 0:06:10.8]} 20. Qc5 {[%clk 0:02:19.9]} 20... Rac8
{[%clk 0:05:40.4]} 21. Qxc7 {[%clk 0:02:16.7]} 21... Rxc7 {[%clk 0:05:42.3]} 22.
h4 {[%clk 0:02:14]} 22... h6 {[%clk 0:05:35.1]} 23. gxh6 {[%clk 0:02:14.4]}
23... Bxh6 {[%clk 0:05:37]} 24. Rfd1 {[%clk 0:01:51.7]} 24... Bf4 {[%clk
0:05:21.9]} 25. Rd4 {[%clk 0:01:14.9]} 25... e5 {[%clk 0:04:58.6]} 26. Rb4
{[%clk 0:01:15.9]} 26... b5 {[%clk 0:04:59.7]} 27. a4 {[%clk 0:01:16.4]} 27...
bxa4 {[%clk 0:05:00.9]} 28. Raxa4 {[%clk 0:01:04.4]} 28... Rd8 {[%clk 0:05:00]}
29. Bf3 {[%clk 0:00:54.2]} 29... Rd3 {[%clk 0:04:45.1]} 30. Kg2 {[%clk
0:00:55.3]} 30... Rd6 {[%clk 0:03:50.7]} 31. Be2 {[%clk 0:00:20.2]} 31... Rcc6
{[%clk 0:03:02.5]} 32. Rc4 {[%clk 0:00:17.8]} 32... Bc2 {[%clk 0:02:40.3]} 33.
Rxc6 {[%clk 0:00:10.3]} 33... Rxc6 {[%clk 0:02:39.5]} 34. Rb4 {[%clk 0:00:11.9]}
34... Rg6+ {[%clk 0:02:13.2]} 35. Kf3 {[%clk 0:00:11.1]} 35... Bh6 {[%clk
0:02:03.4]} 36. Bc4 {[%clk 0:00:05.9]} 36... Kh7 {[%clk 0:01:38.2]} 37. Ke2
{[%clk 0:00:07]} 37... Rd6 {[%clk 0:01:38.9]} 38. Bxf7 {[%clk 0:00:05.7]} 38...
Bd1+ {[%clk 0:01:40]} 39. Ke1 {[%clk 0:00:05.8]} 39... Bf3 {[%clk 0:01:37.8]}
0-1

[Event "GrandPrix_29.05"]
[Site "Chess.com"]
[Date "2020.05.29"]
[Round "4"]
[White "grzechu96"]
[Black "Spartakus1975"]
[Result "0-1"]
[WhiteElo "2500"]
[BlackElo "2485"]
[TimeControl "600+2"]
[EndTime "10:58:37 PDT"]
[Termination "Spartakus1975 won by resignation"]

1. e4 {[%clk 0:10:01.9]} 1... e6 {[%clk 0:09:54.4]} 2. d4 {[%clk 0:10:02.2]}
2... d5 {[%clk 0:09:53.7]} 3. Nc3 {[%clk 0:10:03.7]} 3... Nf6 {[%clk 0:09:53.6]}
4. e5 {[%clk 0:09:54.5]} 4... Nfd7 {[%clk 0:09:53.3]} 5. f4 {[%clk 0:09:55.9]}
5... c5 {[%clk 0:09:53.5]} 6. Nf3 {[%clk 0:09:57.3]} 6... Nc6 {[%clk 0:09:54.3]}
7. Be3 {[%clk 0:09:57.7]} 7... Be7 {[%clk 0:09:55.7]} 8. Qd2 {[%clk 0:09:54.8]}
8... O-O {[%clk 0:09:55.7]} 9. dxc5 {[%clk 0:09:50.5]} 9... Nxc5 {[%clk
0:09:55.5]} 10. O-O-O {[%clk 0:09:44.2]} 10... a6 {[%clk 0:09:42.4]} 11. Qf2
{[%clk 0:09:41.4]} 11... b6 {[%clk 0:09:35.6]} 12. h4 {[%clk 0:09:15.8]} 12...
Qc7 {[%clk 0:08:31.8]} 13. h5 {[%clk 0:08:41]} 13... Bb7 {[%clk 0:08:29.2]} 14.
Kb1 {[%clk 0:07:28.9]} 14... Rac8 {[%clk 0:08:16.2]} 15. Bd3 {[%clk 0:04:59.5]}
15... Nxd3 {[%clk 0:07:31]} 16. cxd3 {[%clk 0:05:01.4]} 16... d4 {[%clk
0:07:31.2]} 17. Nxd4 {[%clk 0:04:55.1]} 17... Nxd4 {[%clk 0:07:31.3]} 18. Bxd4
{[%clk 0:04:56.5]} 18... b5 {[%clk 0:07:18.6]} 19. Ne4 {[%clk 0:04:40.4]} 19...
Rfd8 {[%clk 0:07:14.4]} 20. h6 {[%clk 0:04:26.4]} 20... g6 {[%clk 0:07:11.9]}
21. Nd6 {[%clk 0:04:26.4]} 21... Bxd6 {[%clk 0:07:04.4]} 22. exd6 {[%clk
0:04:28.3]} 22... Qxd6 {[%clk 0:07:02.2]} 23. Bf6 {[%clk 0:04:27.1]} 23... Rd7
{[%clk 0:06:56.2]} 24. Rhe1 {[%clk 0:04:09]} 24... Qd5 {[%clk 0:06:46.2]} 25.
Qh4 {[%clk 0:03:53.8]} 25... Qf5 {[%clk 0:06:13.2]} 26. g4 {[%clk 0:03:39.8]}
26... Qxf4 {[%clk 0:05:50.7]} 27. Be5 {[%clk 0:03:30]} 27... Qf3 {[%clk
0:05:48.7]} 28. Rf1 {[%clk 0:03:31]} 28... Rxd3 {[%clk 0:05:44.8]} 29. Rde1
{[%clk 0:02:07.2]} 29... Be4 {[%clk 0:05:31.7]} 30. Ka1 {[%clk 0:01:19]} 30...
Rcd8 {[%clk 0:05:27]} 31. Qxd8+ {[%clk 0:00:05.9]} 31... Rxd8 {[%clk 0:05:24.9]}
32. Rxf3 {[%clk 0:00:07.5]} 32... Bxf3 {[%clk 0:05:26]} 33. g5 {[%clk
0:00:09.1]} 33... Kf8 {[%clk 0:05:15.9]} 34. Bf6 {[%clk 0:00:07.9]} 34... Rd5
{[%clk 0:04:46.5]} 35. b4 {[%clk 0:00:08.3]} 35... Ke8 {[%clk 0:04:42.8]} 36.
Kb2 {[%clk 0:00:09]} 36... Kd7 {[%clk 0:04:43.6]} 37. Kc3 {[%clk 0:00:10.5]}
37... Kd6 {[%clk 0:04:37.6]} 38. Rf1 {[%clk 0:00:08.7]} 38... Bg4 {[%clk
0:04:23.5]} 39. Rf4 {[%clk 0:00:09.3]} 39... Bf5 {[%clk 0:04:12.8]} 40. Rd4
{[%clk 0:00:10.5]} 40... e5 {[%clk 0:04:14.1]} 41. Rxd5+ {[%clk 0:00:12]} 41...
Kxd5 {[%clk 0:04:15.7]} 42. a3 {[%clk 0:00:11]} 42... Ke4 {[%clk 0:04:13.4]} 43.
Kd2 {[%clk 0:00:08.2]} 43... Kf4 {[%clk 0:04:13.9]} 44. Ke2 {[%clk 0:00:06.2]}
44... e4 {[%clk 0:04:14.9]} 45. Kf2 {[%clk 0:00:03.9]} 45... e3+ {[%clk
0:04:13.9]} 46. Ke2 {[%clk 0:00:04.9]} 46... Bg4+ {[%clk 0:04:12.9]} 47. Ke1
{[%clk 0:00:06.2]} 47... Be6 {[%clk 0:04:11]} 48. Be7 {[%clk 0:00:07]} 48... Bc4
{[%clk 0:04:07.3]} 49. Bf6 {[%clk 0:00:07.8]} 49... Ke4 {[%clk 0:04:07.9]} 50.
Kd1 {[%clk 0:00:07.9]} 50... Kd3 {[%clk 0:04:08.4]} 51. Ke1 {[%clk 0:00:09.1]}
51... Kc2 {[%clk 0:04:08.5]} 52. Bd4 {[%clk 0:00:09.4]} 52... e2 {[%clk
0:04:09.6]} 53. Bc5 {[%clk 0:00:10.1]} 53... Kb3 {[%clk 0:04:10.4]} 54. Kd2
{[%clk 0:00:10.5]} 54... Kxa3 {[%clk 0:04:11.1]} 55. Be7 {[%clk 0:00:11.7]}
55... Ka4 {[%clk 0:04:10.5]} 56. Bc5 {[%clk 0:00:09.5]} 56... a5 {[%clk
0:04:11.2]} 57. bxa5 {[%clk 0:00:09.9]} 57... Kxa5 {[%clk 0:04:12.7]} 58. Be7
{[%clk 0:00:09.4]} 58... b4 {[%clk 0:04:13.4]} 59. Bd6 {[%clk 0:00:10.3]} 59...
Kb5 {[%clk 0:04:11.5]} 60. Be7 {[%clk 0:00:10.6]} 60... b3 {[%clk 0:04:12.4]}
61. Bf6 {[%clk 0:00:11.4]} 61... Kb4 {[%clk 0:04:11]} 62. Bb2 {[%clk 0:00:11.7]}
62... Kc5 {[%clk 0:04:05.8]} 63. Ke1 {[%clk 0:00:11.6]} 63... Kd5 {[%clk
0:04:06.5]} 64. Bf6 {[%clk 0:00:12]} 64... Ke4 {[%clk 0:04:07.7]} 65. Kd2 {[%clk
0:00:13]} 65... Kf4 {[%clk 0:04:07.4]} 66. Ke1 {[%clk 0:00:14.3]} 66... b2
{[%clk 0:04:04.5]} 67. Bxb2 {[%clk 0:00:15.5]} 67... Kxg5 {[%clk 0:04:05]} 68.
Bg7 {[%clk 0:00:15.4]} 68... f5 {[%clk 0:04:02.5]} 69. Kf2 {[%clk 0:00:16.8]}
69... Kg4 {[%clk 0:04:03.5]} 70. Be5 {[%clk 0:00:16.8]} 70... g5 {[%clk
0:04:04.6]} 71. Bf6 {[%clk 0:00:17.9]} 71... f4 {[%clk 0:04:05.6]} 72. Bd8
{[%clk 0:00:18.7]} 72... Kf5 {[%clk 0:04:06.6]} 73. Be7 {[%clk 0:00:16.7]} 73...
g4 {[%clk 0:04:07.6]} 74. Bd6 {[%clk 0:00:13.9]} 74... g3+ {[%clk 0:04:08.5]}
75. Ke1 {[%clk 0:00:15.1]} 75... Kg4 {[%clk 0:04:09.3]} 0-1